[Event "Early-Titled-Tuesday-Blitz-January-30-2024"]
[Site "Chess.com"]
[Date "2024.01.30"]
[Round "10"]
[White "Lady_Nika"]
[Black "Iball95"]
[Result "0-1"]
[WhiteElo "2579"]
[BlackElo "2778"]
[TimeControl "180+1"]
[EndTime "10:02:51 PST"]
[Termination "Iball95 won on time"]

1. d4 {[%clk 0:03:00.9]} 1... d5 {[%clk 0:02:59.9]} 2. e3 {[%clk 0:03:01.2]}
2... Nf6 {[%clk 0:02:59.4]} 3. f4 {[%clk 0:03:01.2]} 3... Bf5 {[%clk 0:02:53.6]}
4. Nf3 {[%clk 0:03:01.4]} 4... e6 {[%clk 0:02:53.9]} 5. c3 {[%clk 0:03:01.4]}
5... Nbd7 {[%clk 0:02:52.5]} 6. Bd3 {[%clk 0:03:01.7]} 6... Bxd3 {[%clk
0:02:52.5]} 7. Qxd3 {[%clk 0:03:01.7]} 7... Bd6 {[%clk 0:02:51]} 8. Nbd2 {[%clk
0:03:01.7]} 8... O-O {[%clk 0:02:46.1]} 9. Ne5 {[%clk 0:03:01.7]} 9... c5 {[%clk
0:02:44.3]} 10. O-O {[%clk 0:03:01.7]} 10... Rc8 {[%clk 0:02:42.5]} 11. Rf3
{[%clk 0:03:01.6]} 11... g6 {[%clk 0:02:41.4]} 12. Rh3 {[%clk 0:03:00.2]} 12...
a6 {[%clk 0:02:32.7]} 13. a3 {[%clk 0:02:58.3]} 13... b5 {[%clk 0:02:32.1]} 14.
Qe2 {[%clk 0:02:58]} 14... Kg7 {[%clk 0:02:27.6]} 15. Nf1 {[%clk 0:02:54.7]}
15... h5 {[%clk 0:02:17.8]} 16. Bd2 {[%clk 0:02:51.2]} 16... Ne4 {[%clk
0:02:15.4]} 17. Be1 {[%clk 0:02:50.9]} 17... Rh8 {[%clk 0:02:13]} 18. Ng3 {[%clk
0:02:50.4]} 18... Nxg3 {[%clk 0:02:08.6]} 19. Bxg3 {[%clk 0:02:41.6]} 19... Be7
{[%clk 0:02:07.7]} 20. Rf1 {[%clk 0:02:35.5]} 20... Nf6 {[%clk 0:02:01.3]} 21.
Be1 {[%clk 0:02:32.5]} 21... Ne4 {[%clk 0:02:01.3]} 22. Nf3 {[%clk 0:02:32.1]}
22... Bf6 {[%clk 0:01:54]} 23. Bh4 {[%clk 0:02:27.3]} 23... Qb6 {[%clk
0:01:52.9]} 24. Bxf6+ {[%clk 0:02:20.2]} 24... Nxf6 {[%clk 0:01:53.8]} 25. Ne5
{[%clk 0:02:20.3]} 25... a5 {[%clk 0:01:54]} 26. Kh1 {[%clk 0:02:12.3]} 26... b4
{[%clk 0:01:53.1]} 27. axb4 {[%clk 0:02:11.9]} 27... axb4 {[%clk 0:01:50]} 28.
Rg1 {[%clk 0:01:58.1]} 28... bxc3 {[%clk 0:01:48.1]} 29. bxc3 {[%clk 0:01:57.8]}
29... cxd4 {[%clk 0:01:49]} 30. cxd4 {[%clk 0:01:51.6]} 30... Qb3 {[%clk
0:01:45.8]} 31. e4 {[%clk 0:01:47.8]} 31... Qc2 {[%clk 0:01:39.1]} 32. Qxc2
{[%clk 0:01:45.7]} 32... Rxc2 {[%clk 0:01:40]} 33. exd5 {[%clk 0:01:45.8]} 33...
Nxd5 {[%clk 0:01:40.9]} 34. Rf3 {[%clk 0:01:44.5]} 34... Ra8 {[%clk 0:01:35.5]}
35. Nd3 {[%clk 0:01:11.4]} 35... Ra4 {[%clk 0:01:29]} 36. g4 {[%clk 0:00:39.5]}
36... hxg4 {[%clk 0:01:24.1]} 37. Rxg4 {[%clk 0:00:39.3]} 37... Rxd4 {[%clk
0:01:22.2]} 38. Rg1 {[%clk 0:00:37.6]} 38... Ra4 {[%clk 0:01:13]} 39. f5 {[%clk
0:00:35.8]} 39... Rh4 {[%clk 0:01:03.8]} 40. h3 {[%clk 0:00:34.1]} 40... exf5
{[%clk 0:01:03.5]} 41. Ne1 {[%clk 0:00:27.2]} 41... Rd2 {[%clk 0:01:01.2]} 42.
Ng2 {[%clk 0:00:27.2]} 42... Re4 {[%clk 0:01:00.7]} 43. h4 {[%clk 0:00:16.8]}
43... Nf6 {[%clk 0:00:57.1]} 44. Rh3 {[%clk 0:00:09.7]} 44... Ng4 {[%clk
0:00:56]} 45. Rf3 {[%clk 0:00:09.9]} 45... Ree2 {[%clk 0:00:51.8]} 46. h5 {[%clk
0:00:08.9]} 46... Ra2 {[%clk 0:00:40.7]} 47. hxg6 {[%clk 0:00:08.6]} 47... fxg6
{[%clk 0:00:41.6]} 48. Rg3 {[%clk 0:00:08.4]} 48... Nf2+ {[%clk 0:00:38.1]} 49.
Kh2 {[%clk 0:00:08.5]} 49... Ne4 {[%clk 0:00:38.7]} 50. Rh3 {[%clk 0:00:06.7]}
50... f4 {[%clk 0:00:36.1]} 51. Rf3 {[%clk 0:00:06.9]} 51... g5 {[%clk
0:00:35.5]} 52. Kh1 {[%clk 0:00:05.9]} 52... Kf6 {[%clk 0:00:32.8]} 53. Rb3
{[%clk 0:00:02.6]} 53... Kf5 {[%clk 0:00:17.4]} 54. Rb5+ {[%clk 0:00:02.8]}
54... Kf6 {[%clk 0:00:16.2]} 55. Rb6+ {[%clk 0:00:02.6]} 55... Kg7 {[%clk
0:00:16.5]} 56. Rb7+ {[%clk 0:00:02.4]} 56... Kh6 {[%clk 0:00:16.6]} 57. Rb6+
{[%clk 0:00:02.6]} 57... Kh5 {[%clk 0:00:17.1]} 58. Rb8 {[%clk 0:00:02.9]} 58...
Nf2+ {[%clk 0:00:14.9]} 59. Kh2 {[%clk 0:00:02.8]} 59... Ng4+ {[%clk 0:00:15.7]}
60. Kh3 {[%clk 0:00:02.5]} 60... Ra3+ {[%clk 0:00:15]} 0-1

[Event "Early-Titled-Tuesday-Blitz-January-30-2024"]
[Site "Chess.com"]
[Date "2024.01.30"]
[Round "10"]
[White "Balla_Tamas"]
[Black "Dinosaurio_1975"]
[Result "0-1"]
[WhiteElo "2415"]
[BlackElo "2584"]
[TimeControl "180+1"]
[EndTime "10:02:55 PST"]
[Termination "Dinosaurio_1975 won by checkmate"]

1. e4 {[%clk 0:02:53.8]} 1... c6 {[%clk 0:02:57.5]} 2. d4 {[%clk 0:02:52.8]}
2... d5 {[%clk 0:02:58.4]} 3. e5 {[%clk 0:02:53.4]} 3... c5 {[%clk 0:02:57.6]}
4. Nf3 {[%clk 0:02:53]} 4... Nc6 {[%clk 0:02:56.7]} 5. Bb5 {[%clk 0:02:50.9]}
5... Bg4 {[%clk 0:02:51.7]} 6. Bxc6+ {[%clk 0:02:47.4]} 6... bxc6 {[%clk
0:02:50.7]} 7. dxc5 {[%clk 0:02:45.6]} 7... Qa5+ {[%clk 0:02:49.5]} 8. c3 {[%clk
0:02:46]} 8... Qxc5 {[%clk 0:02:49.5]} 9. Be3 {[%clk 0:02:46.7]} 9... Qa5 {[%clk
0:02:49.4]} 10. O-O {[%clk 0:02:44.1]} 10... e6 {[%clk 0:02:49.5]} 11. h3 {[%clk
0:02:44.4]} 11... Bh5 {[%clk 0:02:49.3]} 12. Nbd2 {[%clk 0:02:42]} 12... Nh6
{[%clk 0:02:37.5]} 13. Qc2 {[%clk 0:02:29.5]} 13... Nf5 {[%clk 0:02:31.2]} 14.
Nd4 {[%clk 0:02:20]} 14... Nxe3 {[%clk 0:02:28.5]} 15. fxe3 {[%clk 0:02:20.9]}
15... Bg6 {[%clk 0:02:28.7]} 16. e4 {[%clk 0:02:21.2]} 16... Bc5 {[%clk
0:02:25.3]} 17. Kh1 {[%clk 0:02:18.1]} 17... Bxd4 {[%clk 0:02:19.6]} 18. cxd4
{[%clk 0:02:16.9]} 18... O-O {[%clk 0:02:19.6]} 19. Qd3 {[%clk 0:02:12.1]} 19...
dxe4 {[%clk 0:02:17.4]} 20. Qe3 {[%clk 0:02:12.2]} 20... Qd5 {[%clk 0:02:16.9]}
21. Nb3 {[%clk 0:02:09]} 21... a5 {[%clk 0:02:16.1]} 22. Rac1 {[%clk 0:02:05.8]}
22... a4 {[%clk 0:02:14.8]} 23. Rc5 {[%clk 0:02:06.1]} 23... Qd7 {[%clk
0:01:57.3]} 24. Nd2 {[%clk 0:02:04.7]} 24... Rfb8 {[%clk 0:01:35.2]} 25. Nxe4
{[%clk 0:02:00.7]} 25... Rxb2 {[%clk 0:01:23.5]} 26. Nd6 {[%clk 0:01:54]} 26...
Rxa2 {[%clk 0:01:22.8]} 27. Qf3 {[%clk 0:01:50.7]} 27... Rb2 {[%clk 0:01:19.3]}
28. Rxc6 {[%clk 0:01:50.3]} 28... Rbb8 {[%clk 0:01:03]} 29. Rfc1 {[%clk
0:01:46.9]} 29... a3 {[%clk 0:01:01.9]} 30. Rc7 {[%clk 0:01:47.1]} 30... Qxc7
{[%clk 0:00:54.6]} 31. Rxc7 {[%clk 0:01:39.7]} 31... a2 {[%clk 0:00:54.5]} 32.
Rc1 {[%clk 0:01:27.7]} 32... a1=Q {[%clk 0:00:45.5]} 33. Rxa1 {[%clk 0:01:26.4]}
33... Rxa1+ {[%clk 0:00:46.4]} 34. Kh2 {[%clk 0:01:25.6]} 34... Ra2 {[%clk
0:00:45.1]} 35. Qc6 {[%clk 0:01:17]} 35... h5 {[%clk 0:00:42]} 36. Nc8 {[%clk
0:01:13.9]} 36... Rbb2 {[%clk 0:00:32.4]} 37. Ne7+ {[%clk 0:01:13.9]} 37... Kh7
{[%clk 0:00:31.3]} 38. Nxg6 {[%clk 0:01:00.9]} 38... Kxg6 {[%clk 0:00:30.6]} 39.
Qe4+ {[%clk 0:00:59.3]} 39... Kh6 {[%clk 0:00:29]} 40. Qf4+ {[%clk 0:00:51.3]}
40... Kg6 {[%clk 0:00:28.1]} 41. Qe4+ {[%clk 0:00:48.3]} 41... Kh6 {[%clk
0:00:23.9]} 42. Qf4+ {[%clk 0:00:44]} 42... Kh7 {[%clk 0:00:23.9]} 43. Qxf7
{[%clk 0:00:43.7]} 43... Rxg2+ {[%clk 0:00:23.6]} 44. Kh1 {[%clk 0:00:44.2]}
44... Rh2+ {[%clk 0:00:23.7]} 45. Kg1 {[%clk 0:00:44]} 45... Rag2+ {[%clk
0:00:12.1]} 46. Kf1 {[%clk 0:00:44.2]} 46... Rf2+ {[%clk 0:00:12.6]} 47. Qxf2
{[%clk 0:00:44.4]} 47... Rxf2+ {[%clk 0:00:13.5]} 48. Kxf2 {[%clk 0:00:45.3]}
48... Kg6 {[%clk 0:00:14.1]} 49. Kf3 {[%clk 0:00:39.1]} 49... Kf5 {[%clk
0:00:14.1]} 50. h4 {[%clk 0:00:39.6]} 50... g5 {[%clk 0:00:14.4]} 51. hxg5
{[%clk 0:00:39.6]} 51... Kxg5 {[%clk 0:00:15.3]} 52. Ke4 {[%clk 0:00:39.3]}
52... h4 {[%clk 0:00:15.6]} 53. d5 {[%clk 0:00:39.7]} 53... exd5+ {[%clk
0:00:15.7]} 54. Kxd5 {[%clk 0:00:40.1]} 54... h3 {[%clk 0:00:16.2]} 55. e6
{[%clk 0:00:39.5]} 55... h2 {[%clk 0:00:16.6]} 56. e7 {[%clk 0:00:38.7]} 56...
h1=Q+ {[%clk 0:00:17.5]} 57. Ke6 {[%clk 0:00:38.4]} 57... Qe4+ {[%clk
0:00:16.2]} 58. Kf7 {[%clk 0:00:38.1]} 58... Qf5+ {[%clk 0:00:15.6]} 59. Kg8
{[%clk 0:00:36.4]} 59... Qg6+ {[%clk 0:00:15.8]} 60. Kf8 {[%clk 0:00:36.6]}
60... Qf6+ {[%clk 0:00:16.3]} 61. Ke8 {[%clk 0:00:36.6]} 61... Kg6 {[%clk
0:00:16.6]} 62. Kd7 {[%clk 0:00:36.4]} 62... Qd4+ {[%clk 0:00:17.1]} 63. Kc8
{[%clk 0:00:36]} 63... Qc5+ {[%clk 0:00:17]} 64. Kd8 {[%clk 0:00:36.4]} 64...
Qd6+ {[%clk 0:00:16.9]} 65. Ke8 {[%clk 0:00:36.3]} 65... Kh7 {[%clk 0:00:08.7]}
66. Kf8 {[%clk 0:00:33.1]} 66... Kg6 {[%clk 0:00:05.3]} 67. Ke8 {[%clk
0:00:32.2]} 67... Qb8+ {[%clk 0:00:05.8]} 68. Kd7 {[%clk 0:00:32.5]} 68... Qb7+
{[%clk 0:00:06.3]} 69. Kd6 {[%clk 0:00:32.4]} 69... Qc8 {[%clk 0:00:05.4]} 70.
Ke5 {[%clk 0:00:31.9]} 70... Qe8 {[%clk 0:00:06.2]} 71. Kd6 {[%clk 0:00:32.7]}
71... Kf7 {[%clk 0:00:06.6]} 72. Kd5 {[%clk 0:00:33.3]} 72... Qxe7 {[%clk
0:00:07.5]} 73. Kc6 {[%clk 0:00:33.7]} 73... Kf6 {[%clk 0:00:08.1]} 74. Kd5
{[%clk 0:00:34.6]} 74... Qe6+ {[%clk 0:00:08.3]} 75. Kd4 {[%clk 0:00:35.5]}
75... Kf5 {[%clk 0:00:08]} 76. Kd3 {[%clk 0:00:36.4]} 76... Qe5 {[%clk
0:00:08.9]} 77. Kc4 {[%clk 0:00:36.8]} 77... Kf4 {[%clk 0:00:09.4]} 78. Kb4
{[%clk 0:00:36.4]} 78... Ke4 {[%clk 0:00:09.9]} 79. Kc4 {[%clk 0:00:37.3]} 79...
Qd5+ {[%clk 0:00:09.9]} 80. Kb4 {[%clk 0:00:37.7]} 80... Kd4 {[%clk 0:00:10.5]}
81. Ka4 {[%clk 0:00:37.8]} 81... Qb7 {[%clk 0:00:10.9]} 82. Ka5 {[%clk
0:00:38.2]} 82... Kc5 {[%clk 0:00:10.1]} 83. Ka4 {[%clk 0:00:38]} 83... Qb4#
{[%clk 0:00:10.5]} 0-1

[Event "Early-Titled-Tuesday-Blitz-January-30-2024"]
[Site "Chess.com"]
[Date "2024.01.30"]
[Round "10"]
[White "zverr1"]
[Black "DavidGavrilescu18"]
[Result "1-0"]
[WhiteElo "2600"]
[BlackElo "2788"]
[TimeControl "180+1"]
[EndTime "10:02:58 PST"]
[Termination "zverr1 won by checkmate"]

1. d4 {[%clk 0:03:00.9]} 1... d5 {[%clk 0:02:58.2]} 2. c4 {[%clk 0:03:01.4]}
2... e6 {[%clk 0:02:58.2]} 3. Nf3 {[%clk 0:03:02]} 3... Nf6 {[%clk 0:02:57.1]}
4. g3 {[%clk 0:03:02.4]} 4... Bb4+ {[%clk 0:02:56.1]} 5. Bd2 {[%clk 0:03:02.1]}
5... Bd6 {[%clk 0:02:56.2]} 6. Nc3 {[%clk 0:02:54.5]} 6... Nbd7 {[%clk
0:02:55.9]} 7. Qc2 {[%clk 0:02:53.8]} 7... dxc4 {[%clk 0:02:55.9]} 8. e4 {[%clk
0:02:42.8]} 8... c5 {[%clk 0:02:52.2]} 9. Bxc4 {[%clk 0:02:16.2]} 9... cxd4
{[%clk 0:02:50.5]} 10. Nxd4 {[%clk 0:02:12]} 10... O-O {[%clk 0:02:49.7]} 11.
O-O-O {[%clk 0:02:09.1]} 11... a6 {[%clk 0:02:44.6]} 12. f4 {[%clk 0:02:02.6]}
12... Ng4 {[%clk 0:02:26.2]} 13. Rhf1 {[%clk 0:01:45.7]} 13... Bc5 {[%clk
0:02:20.5]} 14. Nxe6 {[%clk 0:01:41.4]} 14... fxe6 {[%clk 0:02:15.7]} 15. Bxe6+
{[%clk 0:01:42.3]} 15... Kh8 {[%clk 0:02:15.9]} 16. Bxg4 {[%clk 0:01:41.6]}
16... Nf6 {[%clk 0:02:16.4]} 17. Bxc8 {[%clk 0:01:34.5]} 17... Rxc8 {[%clk
0:02:17.3]} 18. Kb1 {[%clk 0:01:30.9]} 18... b5 {[%clk 0:02:11.2]} 19. e5 {[%clk
0:01:28.3]} 19... Nd5 {[%clk 0:01:58.2]} 20. Nxd5 {[%clk 0:01:14]} 20... Qxd5
{[%clk 0:01:59.1]} 21. Be3 {[%clk 0:01:09.7]} 21... Qc6 {[%clk 0:01:54.1]} 22.
Rc1 {[%clk 0:01:03]} 22... Rfd8 {[%clk 0:00:57.2]} 23. Bxc5 {[%clk 0:00:54.5]}
23... Qb7 {[%clk 0:00:57.5]} 24. Rfd1 {[%clk 0:00:48.9]} 24... Rxd1 {[%clk
0:00:56.4]} 25. Rxd1 {[%clk 0:00:49.8]} 25... h6 {[%clk 0:00:55.4]} 26. Qg6
{[%clk 0:00:46.9]} 26... Qf3 {[%clk 0:00:49.8]} 27. Rc1 {[%clk 0:00:41.4]} 27...
Qe2 {[%clk 0:00:49.1]} 28. Qc2 {[%clk 0:00:37.6]} 28... Qf3 {[%clk 0:00:47.3]}
29. b4 {[%clk 0:00:37.7]} 29... Rd8 {[%clk 0:00:45.1]} 30. Bd6 {[%clk
0:00:36.6]} 30... a5 {[%clk 0:00:45.7]} 31. bxa5 {[%clk 0:00:35.4]} 31... b4
{[%clk 0:00:46]} 32. a6 {[%clk 0:00:33.2]} 32... Ra8 {[%clk 0:00:42.6]} 33. e6
{[%clk 0:00:22.6]} 33... Qd5 {[%clk 0:00:36.9]} 34. Be5 {[%clk 0:00:17.9]} 34...
Qxe6 {[%clk 0:00:36.2]} 35. a7 {[%clk 0:00:16.6]} 35... Qd5 {[%clk 0:00:17.1]}
36. Qg6 {[%clk 0:00:10.8]} 36... Qd7 {[%clk 0:00:17.4]} 37. Qxh6+ {[%clk
0:00:10.7]} 37... Kg8 {[%clk 0:00:17.7]} 38. Qd6 {[%clk 0:00:10.6]} 38... Qxa7
{[%clk 0:00:17.2]} 39. Qd5+ {[%clk 0:00:09.7]} 39... Kh7 {[%clk 0:00:17.6]} 40.
Rc7 {[%clk 0:00:09.8]} 40... Qg1+ {[%clk 0:00:17.3]} 41. Kb2 {[%clk 0:00:06.7]}
41... Qf2+ {[%clk 0:00:17.1]} 42. Rc2 {[%clk 0:00:07]} 42... Qa7 {[%clk
0:00:16.9]} 43. Qd3+ {[%clk 0:00:07.3]} 43... Kh8 {[%clk 0:00:16.2]} 44. Qd5
{[%clk 0:00:07.9]} 44... Qa3+ {[%clk 0:00:15.4]} 45. Kb1 {[%clk 0:00:07.5]}
45... b3 {[%clk 0:00:15.9]} 46. Qxb3 {[%clk 0:00:07.9]} 46... Qa7 {[%clk
0:00:16.2]} 47. Qb2 {[%clk 0:00:07.5]} 47... Kg8 {[%clk 0:00:10.4]} 48. h4
{[%clk 0:00:08]} 48... Rd8 {[%clk 0:00:09.3]} 49. Rd2 {[%clk 0:00:07.2]} 49...
Rc8 {[%clk 0:00:09.2]} 50. h5 {[%clk 0:00:07.4]} 50... Qc5 {[%clk 0:00:08.8]}
51. Qb3+ {[%clk 0:00:07.4]} 51... Kh7 {[%clk 0:00:08.3]} 52. h6 {[%clk 0:00:08]}
52... Qg1+ {[%clk 0:00:07.7]} 53. Rd1 {[%clk 0:00:08.3]} 53... Qg2 {[%clk
0:00:07.3]} 54. Qd3+ {[%clk 0:00:08.8]} 54... Kxh6 {[%clk 0:00:04.2]} 55. Bxg7+
{[%clk 0:00:07.2]} 55... Kxg7 {[%clk 0:00:01.5]} 56. Qd7+ {[%clk 0:00:07.7]}
56... Kg6 {[%clk 0:00:02.3]} 57. Qxc8 {[%clk 0:00:08.3]} 57... Qe4+ {[%clk
0:00:03.2]} 58. Qc2 {[%clk 0:00:08.8]} 58... Kf5 {[%clk 0:00:03.6]} 59. Qxe4+
{[%clk 0:00:08.4]} 59... Kxe4 {[%clk 0:00:04.5]} 60. a4 {[%clk 0:00:09.1]} 60...
Kf5 {[%clk 0:00:05.4]} 61. a5 {[%clk 0:00:10]} 61... Kg4 {[%clk 0:00:06.3]} 62.
a6 {[%clk 0:00:10.9]} 62... Kf3 {[%clk 0:00:07.2]} 63. a7 {[%clk 0:00:11.8]}
63... Ke2 {[%clk 0:00:08.1]} 64. a8=Q {[%clk 0:00:12.7]} 64... Kf2 {[%clk
0:00:07.7]} 65. f5 {[%clk 0:00:13.6]} 65... Kxg3 {[%clk 0:00:08.3]} 66. f6
{[%clk 0:00:14.5]} 66... Kh2 {[%clk 0:00:09]} 67. f7 {[%clk 0:00:15.2]} 67...
Kg3 {[%clk 0:00:09.9]} 68. Qe4 {[%clk 0:00:15.1]} 68... Kf2 {[%clk 0:00:10.8]}
69. Qf4+ {[%clk 0:00:14.1]} 69... Ke2 {[%clk 0:00:10.8]} 70. Rd2+ {[%clk
0:00:14.9]} 70... Ke1 {[%clk 0:00:11.3]} 71. Qf2# {[%clk 0:00:15.8]} 1-0

[Event "Early-Titled-Tuesday-Blitz-January-30-2024"]
[Site "Chess.com"]
[Date "2024.01.30"]
[Round "10"]
[White "ahkashefi2800"]
[Black "azikom"]
[Result "1/2-1/2"]
[WhiteElo "2583"]
[BlackElo "2721"]
[TimeControl "180+1"]
[EndTime "10:02:58 PST"]
[Termination "Game drawn by repetition"]

1. Nf3 {[%clk 0:02:57.8]} 1... Nf6 {[%clk 0:02:59.3]} 2. g3 {[%clk 0:02:57.9]}
2... c5 {[%clk 0:02:59.6]} 3. Bg2 {[%clk 0:02:58.2]} 3... Nc6 {[%clk 0:03:00.1]}
4. O-O {[%clk 0:02:58.6]} 4... d6 {[%clk 0:02:53.6]} 5. b3 {[%clk 0:02:58.5]}
5... g6 {[%clk 0:02:53.1]} 6. Bb2 {[%clk 0:02:58.6]} 6... Bg7 {[%clk 0:02:54]}
7. c4 {[%clk 0:02:58.8]} 7... O-O {[%clk 0:02:53.9]} 8. d3 {[%clk 0:02:54.5]}
8... Bg4 {[%clk 0:02:51.2]} 9. Nbd2 {[%clk 0:02:54.2]} 9... Qd7 {[%clk
0:02:47.9]} 10. Re1 {[%clk 0:02:53.6]} 10... Bh3 {[%clk 0:02:46.9]} 11. Bh1
{[%clk 0:02:53.6]} 11... a6 {[%clk 0:02:44.4]} 12. Rb1 {[%clk 0:02:47]} 12... b5
{[%clk 0:02:43.6]} 13. d4 {[%clk 0:02:44.7]} 13... cxd4 {[%clk 0:02:37.2]} 14.
Nxd4 {[%clk 0:02:44.7]} 14... Nxd4 {[%clk 0:02:36.6]} 15. Bxd4 {[%clk
0:02:44.6]} 15... Rac8 {[%clk 0:02:33.5]} 16. Rc1 {[%clk 0:02:41.5]} 16... h5
{[%clk 0:02:27.9]} 17. Nf3 {[%clk 0:02:40.8]} 17... bxc4 {[%clk 0:02:20.2]} 18.
bxc4 {[%clk 0:02:40.8]} 18... Bg4 {[%clk 0:02:14.9]} 19. c5 {[%clk 0:02:40.3]}
19... dxc5 {[%clk 0:02:13.6]} 20. Bxc5 {[%clk 0:02:38.9]} 20... Qe6 {[%clk
0:02:11.6]} 21. Qb3 {[%clk 0:02:31.7]} 21... Rfe8 {[%clk 0:01:56]} 22. Ng5
{[%clk 0:02:24.5]} 22... Qxb3 {[%clk 0:01:54.9]} 23. axb3 {[%clk 0:02:24.7]}
23... Bh6 {[%clk 0:01:46.3]} 24. h4 {[%clk 0:02:18.7]} 24... Nh7 {[%clk
0:01:44.2]} 25. f4 {[%clk 0:02:14.5]} 25... Nxg5 {[%clk 0:01:42.6]} 26. hxg5
{[%clk 0:02:13.3]} 26... Bg7 {[%clk 0:01:42.6]} 27. b4 {[%clk 0:02:08.9]} 27...
e5 {[%clk 0:01:32.9]} 28. Bb7 {[%clk 0:02:02.1]} 28... Rc7 {[%clk 0:01:19.4]}
29. Bxa6 {[%clk 0:02:02.1]} 29... exf4 {[%clk 0:01:18.3]} 30. gxf4 {[%clk
0:02:02.5]} 30... Bb2 {[%clk 0:00:53]} 31. Rc2 {[%clk 0:02:02.7]} 31... Bd4+
{[%clk 0:00:47.8]} 32. Kg2 {[%clk 0:01:49.8]} 32... Be3 {[%clk 0:00:36.5]} 33.
Kg3 {[%clk 0:01:40]} 33... Re4 {[%clk 0:00:35.9]} 34. Rf1 {[%clk 0:01:27.4]}
34... Rxb4 {[%clk 0:00:34]} 35. Bxb4 {[%clk 0:01:17.8]} 35... Rxc2 {[%clk
0:00:33.6]} 36. Rd1 {[%clk 0:01:15.3]} 36... Rc6 {[%clk 0:00:20.2]} 37. Rd8+
{[%clk 0:01:14.5]} 37... Kh7 {[%clk 0:00:19.9]} 38. Bb5 {[%clk 0:01:03.9]} 38...
Rc8 {[%clk 0:00:19.4]} 39. Rd3 {[%clk 0:00:52.9]} 39... Bc5 {[%clk 0:00:10.8]}
40. Bd2 {[%clk 0:00:22.7]} 40... Bxe2 {[%clk 0:00:08.8]} 41. Rb3 {[%clk
0:00:19.7]} 41... Bxb5 {[%clk 0:00:08.1]} 42. Rxb5 {[%clk 0:00:20]} 42... Kg8
{[%clk 0:00:08.2]} 43. Ba5 {[%clk 0:00:13.9]} 43... Bd6 {[%clk 0:00:07.6]} 44.
Rd5 {[%clk 0:00:13]} 44... Be7 {[%clk 0:00:07.3]} 45. Rd7 {[%clk 0:00:12.7]}
45... Kf8 {[%clk 0:00:06.9]} 46. Rb7 {[%clk 0:00:11.4]} 46... Ke8 {[%clk
0:00:07]} 47. Kf3 {[%clk 0:00:09.6]} 47... Ra8 {[%clk 0:00:06.8]} 48. Bd2 {[%clk
0:00:06.9]} 48... Rd8 {[%clk 0:00:06.7]} 49. Bc3 {[%clk 0:00:05.5]} 49... Rc8
{[%clk 0:00:07.1]} 50. Be5 {[%clk 0:00:04.6]} 50... Rd8 {[%clk 0:00:07.2]} 51.
Ke4 {[%clk 0:00:04.3]} 51... Rc8 {[%clk 0:00:06.8]} 52. Kf3 {[%clk 0:00:04.1]}
52... Ra8 {[%clk 0:00:07.3]} 53. Ke4 {[%clk 0:00:04.3]} 53... Bd8 {[%clk
0:00:07.4]} 54. Rb3 {[%clk 0:00:03.9]} 54... Ra4+ {[%clk 0:00:07.2]} 55. Kd5
{[%clk 0:00:03.7]} 55... Ra5+ {[%clk 0:00:07.2]} 56. Ke4 {[%clk 0:00:03.6]}
56... Ra4+ {[%clk 0:00:07.6]} 57. Kd5 {[%clk 0:00:04]} 57... Ra5+ {[%clk
0:00:08]} 58. Ke4 {[%clk 0:00:04.4]} 58... Ra4+ {[%clk 0:00:08.4]} 1/2-1/2